[Event "3rd VIZAG GM-Open 2022"]
[Site "Visakapatnam"]
[Date "2022.06.17"]
[Round "10.8"]
[White "Kaustuv, Kundu"]
[Black "Mirzoev, Azer"]
[Result "0-1"]
[ECO "E14"]
[WhiteElo "2327"]
[BlackElo "2476"]
[Annotator "TA"]
[PlyCount "94"]
[EventDate "2022.06.13"]
[EventType "swiss"]
[EventCountry "IND"]
[SourceTitle "playchess.com"]
[Source "ChessBase"]
[SourceQuality "1"]
[TimeControl "5400+30"]

{[%evp 19,94,17,2,0,0,0,0,0,0,-8,0,0,0,6,0,-8,-1,-11,-9,-12,-14,-35,-35,-14,-26,-43,-42,-26,-37,-64,-66,-61,-54,-98,-98,-105,-80,-87,-80,-77,-81,-87,-78,-81,-81,-89,-91,-107,-103,-122,0,0,0,0,0,0,110,0,96,0,0,0,0,0,0,0,0,0,0,-393,-364,-395,-395,-395,-388,-380,-369]} 1. c4 {[%emt 0:00:06]} e6 {[%emt 0:00:03]} 2. Nf3 {[%emt 0:00:09]} d5 {[%emt 0:00:05]} 3. e3 {[%emt 0:00:05]} Nf6 {[%emt 0:00:24]} 4. Nc3 {[%emt 0:00:06]} Be7 {[%emt 0:01:13]} 5. b3 {[%emt 0:00:11]} O-O {[%emt 0:00:07]} 6. Bb2 {[%emt 0:00:05]} b6 {[%emt 0:00:31]} 7. cxd5 {[%emt 0:00:09]} exd5 {[%emt 0:00:08]} 8. d4 {[%emt 0:00:06]} Bb7 {[%emt 0:00:07]} 9. Bd3 {[%emt 0:00:09]} Nbd7 {[%emt 0:00:09]} 10. O-O {[%emt 0:00:07]} a6 {[%emt 0:00:16] The main line 10...a6 scores better than 10...Re8.} 11. Rc1 {[%emt 0:00:28] E14: Queen's Indian: Classical Variation (4 e3).} Bd6 {[%emt 0:00:23]} 12. Ne2 {[%emt 0:01:53]} Re8 {[%emt 0:00:11]} 13. Ng3 {[%emt 0:00:42] The position is equal.} g6 {[%emt 0:01:01] Inhibits Nf5.} 14. Qc2 {[%emt 0:04:41]} Rc8 {[%emt 0:05:34]} 15. Qe2 {[%emt 0:00:15]} b5 {[%emt 0:03:52]} 16. a4 {[%emt 0:00:40]} c6 {[%emt 0:00:09] [#]} 17. Rfe1 $146 {[%emt 0:10:46]} ({Predecessor:} 17. Rfd1 Qe7 18. Nd2 Nb6 19. Ra1 h5 20. Re1 Nbd7 21. f3 Qf8 22. e4 dxe4 23. fxe4 {1-0 (36) Shengelia,D (2560)-Tratar,M (2480) Austria 2009}) 17... Ne4 {[%emt 0:03:04]} 18. Nd2 {[%emt 0:01:13]} Ndf6 {[%emt 0:05:13]} 19. Ngf1 {[%emt 0:04:42]} Bb4 {[%emt 0:08:50]} 20. f3 {[%emt 0:07:30]} Nxd2 {[%emt 0:01:00]} 21. Nxd2 {[%emt 0:00:04]} Qb6 {[%emt 0:01:52]} 22. Bc3 {[%emt 0:18:05]} Bxc3 {[%emt 0:12:34]} 23. Rxc3 {[%emt 0:00:41]} b4 {[%emt 0:00:39]} 24. Rc5 {[%emt 0:01:14]} Nd7 $1 {[%emt 0:17:11]} 25. a5 {[%emt 0:00:19]} Qc7 {[%emt 0:08:03]} 26. Rec1 {[%emt 0:00:35]} Nxc5 {[%emt 0:00:34]} 27. Rxc5 {[%emt 0:00:06]} Rb8 {[%emt 0:01:24][%cal Bc8b8,Bb8b7,Bb7a7][%mdl 32]} 28. Nf1 {[%emt 0:00:59]} ({Not} 28. Bxa6 $2 Bxa6 29. Qxa6 Rxe3 $19) 28... Bc8 {[%emt 0:01:26]} 29. Qc2 {[%emt 0:00:24]} Qd8 {[%emt 0:00:42]} 30. Qf2 {[%emt 0:07:38]} Bd7 {[%emt 0:02:02]} 31. Qg3 {[%emt 0:02:33]} Rb7 {[%emt 0:01:32]} 32. h4 {[%emt 0:03:37]} Kg7 {[%emt 0:03:00]} 33. h5 {[%emt 0:01:54]} Qf6 {[%emt 0:01:12]} 34. Kf2 {[%emt 0:05:23]} Bc8 {[%emt 0:03:32]} ({Better is} 34... Ra7 $17 35. Kg1 Kh8) 35. Bxa6 $11 {[%emt 0:03:04]} Ra7 {[%emt 0:00:32]} 36. Bxc8 {[%emt 0:01:06]} Rxc8 {[%emt 0:00:45]} 37. Nh2 {[%emt 0:00:05]} Qf5 {[%emt 0:04:16]} (37... Qe6 $11) 38. e4 {[%emt 0:04:06]} (38. h6+ $1 $16 Kg8 39. Ng4) 38... Qe6 {[%emt 0:05:07] [#]} (38... Qxh5 $11 {remains equal.} 39. exd5 Qf5) 39. exd5 {[%emt 0:07:44]} (39. Ng4 $1 $16 {Black must now prevent exd5.} dxe4 40. d5) 39... cxd5 {[%emt 0:00:07]} 40. h6+ {[%emt 0:03:16]} Kf8 $1 {[%emt 0:07:11]} (40... Kxh6 $2 41. Ng4+ Kg7 42. Rxc8 Rxa5 43. Rc7 Ra2+ 44. Kg1 $18) 41. Rxc8+ {[%emt 0:05:21]} Qxc8 {[%emt 0:00:03][%mdl 4096] Endgame KQR-KQN} 42. Qe5 {[%emt 0:01:10] Threatening mate with Qh8+.} Qc2+ {[%emt 0:01:13]} 43. Kg1 {[%emt 0:00:12]} ({Wrong is} 43. Kg3 $2 Qc7 44. Qxc7 Rxc7 $19) 43... Qc7 {[%emt 0:01:04] [#] Against Qb8+. Strongly threatening ...Qxe5.} 44. Qg7+ {[%emt 0:04:16][%mdl 8192]} (44. Qf6 $1 $11 {and White is okay.}) 44... Ke7 $19 {[%emt 0:00:07] Black is winning.} 45. Ng4 {[%emt 0:00:21]} Qf4 {[%emt 0:01:09] Prevents Qf6+.} 46. Qe5+ {[%emt 0:02:01]} Qxe5 {[%emt 0:00:08]} 47. Nxe5 {[%emt 0:00:04] Nc6+ is the strong threat.} Kd6 {[%emt 0:00:35] Prevents Nc6.  Weighted Error Value: White=0.34/Black=0.15 (very precise)} 0-1

[Event "3rd VIZAG GM-Open 2022"]
[Site "Visakapatnam"]
[Date "2022.06.17"]
[Round "10.9"]
[White "Neelotpal, Das"]
[Black "Aaryan Varshney"]
[Result "1-0"]
[ECO "B86"]
[WhiteElo "2431"]
[BlackElo "2308"]
[Annotator "TA"]
[PlyCount "153"]
[EventDate "2022.06.13"]
[EventType "swiss"]
[EventCountry "IND"]
[SourceTitle "playchess.com"]
[Source "ChessBase"]
[SourceQuality "1"]
[TimeControl "5400+30"]

{[%evp 15,153,29,19,25,59,54,55,57,70,64,102,117,106,111,114,56,146,155,133,138,146,115,141,139,139,144,148,122,126,111,194,151,158,139,149,114,250,262,262,263,320,258,320,299,308,251,258,256,290,222,289,208,295,333,329,319,323,345,356,315,315,315,315,315,315,308,275,164,178,184,193,185,193,193,193,193,193,164,193,193,193,193,193,193,193,193,193,193,193,193,193,193,193,193,193,193,193,193,29963,29963,29964,179,164,0,29965,29965,29962,29963,29957,29963,6078,87,87,87,87,87,29985,29986,29986,29987,29987,29984,29984,29985,29985,29983,29987,29988,29984,29985,29985,29986,29988,29989,29989,29988,29988,29988,29988,29989]} 1. e4 {[%emt 0:00:09]} c5 {[%emt 0:00:08]} 2. Nf3 {[%emt 0:00:36]} d6 {[%emt 0:00:15]} 3. d4 {[%emt 0:00:30]} cxd4 {[%emt 0:00:13]} 4. Nxd4 {[%emt 0:00:20]} Nf6 {[%emt 0:00:05]} 5. Nc3 {[%emt 0:00:42]} a6 {[%emt 0:00:06]} 6. Bc4 {[%emt 0:00:20]} e6 {[%emt 0:01:49]} 7. Bb3 {[%emt 0:00:20]} Be7 {[%emt 0:00:18]} 8. g4 {[%emt 0:02:19]} h6 {[%emt 0:00:47]} 9. Be3 {[%emt 0:05:58] B86: Sicilian Scheveningen/Najdorf: 6 Bc4, without early ...b5.} Nc6 {[%emt 0:01:27]} 10. Nxc6 {[%emt 0:11:11]} bxc6 {[%emt 0:00:07]} 11. Qe2 {[%emt 0:00:03] White is slightly better.} a5 {[%emt 0:20:17]} 12. O-O-O {[%emt 0:10:20]} Ba6 {[%emt 0:01:23]} 13. Qf3 {[%emt 0:00:08]} Nd7 {[%emt 0:01:42] [#]} 14. h4 $146 {[%emt 0:01:46][%cal Og4g5] White is more active.} ({Predecessor:} 14. Qg2 Bb5 15. a3 a4 16. Ba2 Qa5 17. f4 Rb8 18. Bd4 e5 19. fxe5 Bg5+ 20. Kb1 dxe5 21. Nxb5 Rxb5 {1-0 (36) Fidrilakis,S (1919)-Velikic,A (2309) Paleochora 2016}) 14... Qc7 {[%emt 0:05:20]} 15. Bd4 {[%emt 0:19:28]} ({White should play} 15. g5 $16) 15... Bf6 {[%emt 0:03:08]} (15... c5 $14 16. Be3 (16. Bxg7 Rh7 $11) 16... O-O) 16. Bxf6 $16 {[%emt 0:05:01]} gxf6 {[%emt 0:04:30]} 17. Qg3 {[%emt 0:03:09]} Ke7 {[%emt 0:05:35]} 18. Rd2 {[%emt 0:03:25] Black must now prevent Rhd1.} Nc5 {[%emt 0:09:25]} 19. Rhd1 {[%emt 0:02:18] aiming for g5.} Rad8 {[%emt 0:01:04]} 20. g5 {[%emt 0:01:03]} fxg5 {[%emt 0:06:41]} 21. hxg5 {[%emt 0:31:54]} Rhg8 {[%emt 0:05:56]} 22. f4 {[%emt 0:00:00]} Ke8 {[%emt 0:14:31]} (22... hxg5 $16 23. f5 (23. fxg5 Ke8 $14) 23... Bc8) 23. e5 {[%emt 0:00:00]} d5 {[%emt 0:01:33]} 24. Qf2 $1 {[%emt 0:00:00]} Qb6 {[%emt 0:03:59]} (24... Nxb3+ $2 25. axb3 hxg5 26. Ne4 $1 {[%mdl 512]}) 25. gxh6 {[%emt 0:00:00]} Nxb3+ {[%emt 0:00:22]} (25... Bd3 $16 {keeps fighting.}) 26. axb3 $18 {[%emt 0:00:00]} Qxf2 {[%emt 0:00:11]} 27. Rxf2 {[%emt 0:00:00]} Ke7 {[%emt 0:00:27]} 28. Na4 {[%emt 0:00:00]} Rg6 {[%emt 0:00:25]} 29. Nc5 {[%emt 0:00:00]} Bc8 {[%emt 0:00:34]} 30. Rh1 {[%emt 0:00:00]} Rh8 {[%emt 0:00:20]} 31. Rfh2 {[%emt 0:00:00]} Kd8 {[%emt 0:06:21]} 32. Kd2 {[%emt 0:00:00]} Kc7 {[%emt 0:00:23]} 33. c4 {[%emt 0:00:00]} Kb6 {[%emt 0:00:53]} (33... Rh7 {was called for.} 34. Ke3 Kd8) 34. Na4+ {[%emt 0:00:00]} Kc7 {[%emt 0:00:29]} 35. h7 {[%emt 0:00:02]} Bd7 {[%emt 0:05:05]} 36. Rh5 {[%emt 0:04:00]} Rg7 {[%emt 0:01:03]} 37. R1h2 {[%emt 0:00:50]} Be8 {[%emt 0:00:28]} 38. c5 {[%emt 0:01:36]} Kd8 {[%emt 0:00:56]} 39. Nc3 {[%emt 0:01:26]} Ke7 {[%emt 0:00:33]} 40. Rh6 {[%emt 0:00:39] Prevents f6.} Rg3 {[%emt 0:00:33]} 41. R6h3 {[%emt 0:00:29]} (41. Kc2 $142) 41... Rxh3 {[%emt 0:01:03]} 42. Rxh3 {[%emt 0:00:04][%mdl 4096] Endgame Threatens to win with Ne2. KRB-KRN} Kf8 {[%emt 0:00:08]} 43. Ne2 {[%emt 0:00:46] And now Nd4 would win.} Kg7 {[%emt 0:00:25]} 44. Nd4 $1 {[%emt 0:00:57]} Rxh7 {[%emt 0:00:24]} 45. Rxh7+ {[%emt 0:00:14]} Kxh7 {[%emt 0:00:01] KB-KN} 46. f5 {[%emt 0:00:22]} exf5 {[%emt 0:01:08]} 47. Nxf5 {[%emt 0:00:06] Hoping for Nd6.} Kg6 {[%emt 0:00:38] [#]} 48. Nd6 {[%emt 0:00:19]} Bd7 {[%emt 0:00:04]} 49. Ke3 {[%emt 0:00:05]} f6 {[%emt 0:01:09]} 50. exf6 {[%emt 0:01:34]} Kxf6 {[%emt 0:00:06]} 51. Kd4 {[%emt 0:00:00]} Ke6 {[%emt 0:00:58]} 52. Nb7 {[%emt 0:00:04]} Bc8 {[%emt 0:00:22]} 53. Nxa5 {[%emt 0:00:04]} Kd7 {[%emt 0:00:17]} 54. Ke5 {[%emt 0:00:50]} Ba6 {[%emt 0:00:43]} 55. b4 {[%emt 0:00:03]} Kc7 {[%emt 0:00:37]} 56. Nb3 {[%emt 0:00:17] Ke6 would kill now.} Kd7 {[%emt 0:00:20]} (56... d4 $18 57. Nxd4 Bc4) 57. Nd4 {[%emt 0:00:06]} Bf1 {[%emt 0:00:41]} 58. Kf6 $2 {[%emt 0:02:27]} (58. b5 $1 {mates} cxb5 59. c6+ Kc7 60. Kxd5 Kb6 61. Kd6 Bh3 62. c7 b4 63. Nc6) 58... Bd3 {[%emt 0:00:27]} 59. Ke5 $2 {[%emt 0:00:20]} (59. Kg5 $18) 59... Bf1 $1 {[%emt 0:00:19]} 60. b5 $1 {[%emt 0:01:02]} cxb5 {[%emt 0:00:09] [#]} 61. c6+ $1 {[%emt 0:00:38]} Kc7 {[%emt 0:00:25]} 62. Kxd5 {[%emt 0:00:04]} Kb6 {[%emt 0:00:36]} 63. b4 $2 {[%emt 0:00:45]} (63. b3 $18 {is more deadly. Strongly threatening Kd6.} Bg2+ 64. Kd6) 63... Bg2+ $16 {[%emt 0:00:20]} 64. Kd6 {[%emt 0:00:04] Threatening mate with Kd7.} Bh3 {[%emt 0:00:06]} 65. Nf3 {[%emt 0:00:41] White wants to mate with Ne5.} Bf5 $2 {[%emt 0:01:04][%mdl 8192]} (65... Bg2 $16 66. Ne5 Ka7 67. Kd7 Bxc6+ 68. Kxc6 Kb8 69. Kxb5 Kb7 70. Kc5 Kc7) 66. Ne5 {[%emt 0:00:08] White mates.} Bh3 {[%emt 0:00:21]} 67. Nd7+ {[%emt 0:00:13]} Ka7 {[%emt 0:00:22]} 68. Kc7 {[%emt 0:00:34]} Bg2 {[%emt 0:00:22]} 69. Ne5 {[%emt 0:00:26]} Be4 {[%emt 0:00:22]} 70. Kd8 {[%emt 0:00:22]} Kb6 {[%emt 0:00:12]} 71. c7 {[%emt 0:00:32]} Bb7 {[%emt 0:00:04]} 72. c8=Q {[%emt 0:00:58]} Bxc8 {[%emt 0:00:03]} 73. Kxc8 {[%emt 0:00:05]} Ka6 {[%emt 0:00:03]} 74. Kc7 {[%emt 0:00:08]} Ka7 {[%emt 0:00:03]} 75. Kc6 {[%emt 0:00:03]} Ka6 {[%emt 0:00:02]} 76. Kc5 {[%emt 0:00:07]} Kb7 {[%emt 0:00:03]} 77. Kxb5 {[%emt 0:00:03] Weighted Error Value: White=0.30/Black=0.23 (precise)} 1-0

[Event "3rd VIZAG GM-Open 2022"]
[Site "Visakapatnam"]
[Date "2022.06.17"]
[Round "10.10"]
[White "Konguvel, Ponnuswamy"]
[Black "Azaladze, Shota"]
[Result "0-1"]
[ECO "C79"]
[WhiteElo "2331"]
[BlackElo "2420"]
[Annotator "TA"]
[PlyCount "120"]
[EventDate "2022.06.13"]
[EventType "swiss"]
[EventCountry "IND"]
[SourceTitle "playchess.com"]
[Source "ChessBase"]
[SourceQuality "1"]
[TimeControl "5400+30"]

{[%evp 19,120,35,31,26,43,17,25,12,15,8,11,20,24,-8,0,-24,0,0,0,-10,0,-15,-14,-26,-17,-22,0,-4,0,0,0,2,1,0,22,4,7,0,6,-5,-4,-4,-5,-20,0,-2,0,0,0,-20,-25,-40,5,0,0,0,0,0,0,0,0,-17,0,-9,0,-48,-49,-44,0,0,0,0,0,0,0,-108,-101,-108,-50,-45,-46,-43,-45,-483,-461,-391,-353,-2409,-2409,-2409,-2409,-2409,-2409,-2409,-2409,-1426,-1233,-2395,-2137,-1682,-1444,-670,-474]} 1. e4 {[%emt 0:00:05] Atalik,S} e5 {[%emt 0:00:26]} 2. Nf3 {[%emt 0:00:09]} Nc6 {[%emt 0:00:26]} 3. Bb5 {[%emt 0:00:11]} a6 {[%emt 0:00:17]} 4. Ba4 {[%emt 0:00:08]} d6 {[%emt 0:00:38]} 5. O-O {[%emt 0:05:53]} Bd7 {[%emt 0:01:04]} 6. d4 {[%emt 0:08:26]} Nf6 {[%emt 0:00:40]} 7. Re1 {[%emt 0:04:17]} Be7 {[%emt 0:01:38]} 8. Bxc6 {[%emt 0:00:36]} Bxc6 {[%emt 0:00:14]} 9. Nc3 {[%emt 0:00:23]} exd4 {[%emt 0:02:59]} 10. Nxd4 {[%emt 0:01:56]} O-O {[%emt 0:00:13]} 11. Nxc6 {[%emt 0:05:52] C79: Ruy Lopez: Steinitz-type lines with 3...a6 4 Ba4 Nf6 5 0-0 d6.} bxc6 {[%emt 0:01:49]} 12. Qf3 {[%emt 0:04:13]} Nd7 {[%emt 0:00:40]} 13. Bf4 {[%emt 0:00:47] White has an edge.} Bf6 {[%emt 0:00:45]} 14. Rad1 {[%emt 0:00:15][%cal Oe4e5]} Re8 {[%emt 0:00:13] Against e5} 15. b3 {[%emt 0:03:10]} Qb8 {[%emt 0:00:23]} 16. Ne2 {[%emt 0:02:06]} Qb4 {[%emt 0:03:45] [#]} 17. c4 $146 {[%emt 0:12:59]} ({Predecessor:} 17. Ng3 Qc3 18. Qg4 Ne5 19. Bxe5 Bxe5 20. f4 Bd4+ 21. Kh1 Bf2 22. Re2 Bxg3 23. Qxg3 Qxg3 24. hxg3 Kf8 25. Kg1 {½-½ (25) Fontaine,R (2531)-Atalik,S (2541) Athens 2004 CBM 103 Extra [Atalik,S]}) 17... Ne5 {[%emt 0:05:23]} 18. Bxe5 {[%emt 0:02:12]} Rxe5 {[%emt 0:01:54]} 19. Nd4 {[%emt 0:01:46]} Qc5 {[%emt 0:00:36]} 20. Qd3 {[%emt 0:12:38][%cal Ob3b4]} a5 {[%emt 0:00:32]} 21. a3 {[%emt 0:00:20]} Ree8 {[%emt 0:01:33]} 22. Nc2 {[%emt 0:00:40]} Qe5 {[%emt 0:03:47]} 23. g3 {[%emt 0:01:26]} Re6 {[%emt 0:00:37]} 24. Kg2 {[%emt 0:01:02]} Rb8 {[%emt 0:01:15]} 25. b4 {[%emt 0:01:01]} Qc3 {[%emt 0:01:02]} 26. Re3 {[%emt 0:02:10]} Qb2 {[%emt 0:01:07]} 27. Re2 {[%emt 0:04:16]} Qc3 {[%emt 0:02:41]} 28. Re3 {[%emt 0:00:05]} axb4 {[%emt 0:05:43]} 29. Nxb4 {[%emt 0:03:22]} Qxd3 {[%emt 0:00:18]} 30. Rdxd3 {[%emt 0:00:13]} Rb6 {[%emt 0:01:57]} 31. f4 {[%emt 0:03:07]} g6 {[%emt 0:04:14]} 32. Kf3 {[%emt 0:00:03]} Re8 {[%emt 0:01:16]} 33. Re2 {[%emt 0:03:19]} Kg7 {[%emt 0:01:46]} 34. Rc2 {[%emt 0:02:19]} c5 {[%emt 0:00:17]} 35. Nd5 {[%emt 0:00:32][%csl LRb6,LRc7]} Rc6 {[%emt 0:00:01]} 36. a4 {[%emt 0:02:42]} Ra8 {[%emt 0:01:28]} 37. Ra2 {[%emt 0:00:10]} Ra7 {[%emt 0:00:26]} 38. g4 {[%emt 0:05:20]} h6 {[%emt 0:00:35]} 39. Kg3 {[%emt 0:01:51]} Rca6 {[%emt 0:00:22]} 40. Rda3 {[%emt 0:00:07]} Bd4 {[%emt 0:01:14]} 41. Kf3 {[%emt 0:01:45]} Rb7 {[%emt 0:02:03]} 42. Rd3 {[%emt 0:00:41]} (42. a5 $11 {is superior.}) 42... Kf8 $15 {[%emt 0:01:11]} 43. h4 {[%emt 0:00:14]} c6 {[%emt 0:01:05]} (43... Ra5 $5 {[%cal Rc7c6]}) 44. Ne3 {[%emt 0:00:07]} Rb4 {[%emt 0:00:08]} 45. a5 {[%emt 0:00:35]} Ke7 {[%emt 0:00:12]} 46. h5 $1 {[%emt 0:02:35]} Bxe3 {[%emt 0:00:27]} 47. Kxe3 {[%emt 0:00:38]} (47. Rxe3 $11 {was the only way to keep the balance.} gxh5 48. Rc3) 47... gxh5 $11 {[%emt 0:00:07][%mdl 4096] Endgame KRR-KRR} 48. Rh2 {[%emt 0:00:17]} Rxc4 {[%emt 0:01:57]} (48... hxg4 $17 49. Rxh6 Rxa5 50. Rhxd6 Ra1 51. Rxc6 Rxc4) 49. Rxh5 $15 {[%emt 0:00:01]} Rxa5 {[%emt 0:00:11] Threatens to win with ...Raa4.} 50. Rxh6 {[%emt 0:00:17]} Raa4 {[%emt 0:00:21]} 51. e5 {[%emt 0:04:51][%mdl 8192] This move loses the game for White.} (51. Rdxd6 $15 Rxe4+ 52. Kd2) 51... Re4+ $19 {[%emt 0:02:01]} 52. Kd2 {[%emt 0:00:00]} dxe5 {[%emt 0:06:00]} 53. Rxc6 $2 {[%emt 0:00:10] [#]} (53. Rb3 Rad4+ 54. Kc1 Rxf4 55. g5) 53... Ra2+ $1 {[%emt 0:00:25] Black is clearly winning.} 54. Kc3 {[%emt 0:00:04]} Ra3+ {[%emt 0:00:22]} 55. Kd2 {[%emt 0:00:16] [#]} Rxd3+ $1 {[%emt 0:00:50]} 56. Kxd3 {[%emt 0:00:01]} Rd4+ {[%emt 0:00:17]} 57. Ke3 {[%emt 0:01:15]} Rxf4 {[%emt 0:00:53]} 58. Rxc5 {[%emt 0:00:16]} Kd6 {[%emt 0:00:11]} 59. Ra5 {[%emt 0:01:31]} Rxg4 {[%emt 0:00:09]} 60. Ra6+ {[%emt 0:00:11]} Ke7 {[%emt 0:00:09] Weighted Error Value: White=0.48/Black=0.06 (flawless)} 0-1

[Event "3rd VIZAG GM-Open 2022"]
[Site "Visakapatnam"]
[Date "2022.06.17"]
[Round "10.11"]
[White "Hossain, Enamul"]
[Black "Jubin Jimmy"]
[Result "1-0"]
[ECO "B12"]
[WhiteElo "2413"]
[BlackElo "2259"]
[Annotator "TA"]
[PlyCount "149"]
[EventDate "2022.06.13"]
[EventType "swiss"]
[EventCountry "IND"]
[SourceTitle "playchess.com"]
[Source "ChessBase"]
[SourceQuality "1"]
[TimeControl "5400+30"]

{[%evp 9,149,14,13,5,20,0,6,8,12,0,11,0,0,0,0,0,4,5,37,12,8,0,0,-13,-13,-4,-12,-16,-12,-22,-14,-13,-14,-16,0,-99,-97,-145,-130,-136,-141,-170,-157,-147,-161,-150,-164,-174,-162,-158,-108,-90,-100,-98,-8,-25,-15,-106,-99,-90,-33,-39,-37,-77,51,45,75,68,91,44,40,22,28,20,89,58,247,245,248,232,311,304,265,276,450,460,839,824,805,793,785,704,752,737,686,670,1004,999,913,847,862,808,1552,1565,1418,1311,1178,1058,1719,1539,4133,4134,29966,29967,29973,29974,29969,29969,29978,29979,29979,29980,29979,29977,29980,29976,29975,29976,29979,29979,29982,29983,29983,29981,29988,29989,29989,29990,29992,29993,29993,29991]} 1. e4 {[%emt 0:00:15]} c6 {[%emt 0:00:13]} 2. d4 {[%emt 0:00:06]} d5 {[%emt 0:00:05]} 3. e5 {[%emt 0:00:07]} c5 {[%emt 0:00:03]} 4. Nf3 {[%emt 0:00:23]} cxd4 {[%emt 0:00:21]} 5. Nxd4 {[%emt 0:00:08]} Nc6 {[%emt 0:00:07]} 6. Nxc6 {[%emt 0:00:24] B12: Caro-Kann: Advance Variation.} bxc6 {[%emt 0:00:06]} 7. Bd3 {[%emt 0:00:08]} e6 {[%emt 0:00:22]} 8. O-O {[%emt 0:00:10] The position is equal.} Ne7 {[%emt 0:02:22]} 9. Re1 {[%emt 0:01:20]} a5 {[%emt 0:05:50]} 10. Nd2 {[%emt 0:00:49]} Ba6 {[%emt 0:04:12]} 11. c4 {[%emt 0:00:50]} Ng6 {[%emt 0:02:31] [#]} 12. Qc2 $146 {[%emt 0:00:30]} ({Predecessor:} 12. Nf3 Bb4 13. Bd2 dxc4 14. Be4 O-O 15. Qc2 Rb8 16. Rad1 Qb6 17. h4 Rfd8 18. h5 {0-1 (37) Karthikeyan,M (2622)-Aryan,C (2585) chess24.com INT 2022}) 12... Qb6 {[%emt 0:04:44]} 13. Nf3 {[%emt 0:02:47]} Bb4 {[%emt 0:05:26]} 14. Re2 {[%emt 0:03:21]} (14. Be3 $5 {[%cal Re3b6]} Qb8 15. Red1 $14) 14... O-O {[%emt 0:09:09]} 15. b3 {[%emt 0:03:00]} Rfd8 {[%emt 0:03:37]} 16. Bg5 {[%emt 0:00:46]} Rd7 {[%emt 0:00:41][%cal Oa5a4]} 17. h4 {[%emt 0:00:44]} Nf8 {[%emt 0:00:47]} 18. h5 {[%emt 0:04:02]} h6 $1 {[%emt 0:02:58]} 19. Bf4 {[%emt 0:00:11]} Be7 {[%emt 0:04:06]} 20. Rc1 {[%emt 0:04:09]} Ba3 {[%emt 0:03:52]} 21. Rb1 {[%emt 0:03:44]} Rad8 {[%emt 0:04:05]} 22. c5 {[%emt 0:16:45]} (22. Be3 $11 {keeps the balance.} c5 23. Bf4) 22... Bxc5 $17 {[%emt 0:03:48]} 23. Rc1 {[%emt 0:02:02]} (23. Bxa6 $142 Qxa6 24. Ree1) 23... Ba3 {[%emt 0:02:08]} 24. Rd1 {[%emt 0:00:10]} Be7 {[%emt 0:01:22][%cal Oa5a4]} 25. Nh2 {[%emt 0:00:33]} c5 {[%emt 0:04:20][%cal Oc5c4] ...c4! is the strong threat.} 26. Bxa6 {[%emt 0:00:44]} Qxa6 {[%emt 0:00:02]} 27. Re3 {[%emt 0:00:08]} Nh7 {[%emt 0:02:03]} 28. Ng4 {[%emt 0:00:25]} Kh8 {[%emt 0:01:08]} 29. Rf3 {[%emt 0:03:26][%cal Of4h6]} Bf8 {[%emt 0:03:06]} (29... Ng5 $142 30. Rc3 (30. Bxg5 Bxg5 31. Qxc5 Qe2 $17) 30... Ne4) 30. Rg3 {[%emt 0:00:02][%cal Of4h6]} d4 {[%emt 0:03:24][%cal Oa5a4]} 31. Rdd3 {[%emt 0:02:01]} c4 {[%emt 0:07:09]} ({Black should play} 31... a4 $17 32. Bc1 Qb5) 32. bxc4 $11 {[%emt 0:01:40]} Rc7 {[%emt 0:00:05]} 33. Qd2 {[%emt 0:01:08]} (33. Bxh6 $1 $11 {remains equal.} Rxc4 34. Qd2) 33... Qxc4 $17 {[%emt 0:05:52]} (33... Rxc4 $6 34. Bxh6 Qb7 35. Bf4 $15) 34. Qxa5 {[%emt 0:01:43]} Rd5 {[%emt 0:00:35]} (34... Be7 $17 35. Rd1 d3) 35. Qd2 {[%emt 0:01:23]} Qc2 {[%emt 0:01:02]} 36. Kh2 {[%emt 0:03:41]} Rd8 {[%emt 0:03:28] [#]} (36... Qxd2 $17 37. Rxd2 Rb7) 37. Bxh6 $14 {[%emt 0:09:00][%cal Od2f4]} Qxd2 {[%emt 0:00:51]} (37... gxh6 $2 38. Nxh6 Bxh6 39. Qxh6 $16) (37... Rd5 38. Rb3) 38. Bxd2 {[%emt 0:36:45] Hoping for Ba5.} Ra7 {[%emt 0:00:18] [#] Inhibits Ba5.} 39. a3 {[%emt 0:00:00]} (39. Rgf3 $1 $16) 39... f5 $1 {[%emt 0:01:14]} 40. exf6 $1 {[%emt 0:00:00]} gxf6 {[%emt 0:00:01]} 41. Rgf3 {[%emt 0:00:00]} Bd6+ {[%emt 0:04:42]} (41... Rf7 $11) 42. Kg1 {[%emt 0:00:00]} f5 {[%emt 0:02:17]} (42... Rb8 $14 43. Kf1 f5) 43. Rxd4 $18 {[%emt 0:00:00] And now Ne5 would win.} fxg4 {[%emt 0:00:10]} 44. Rfd3 {[%emt 0:00:00]} ({Worse is} 44. Rxg4 Be5 45. Be1 Rd1 $11) 44... Rad7 {[%emt 0:04:07][%cal Od6h2]} 45. Bf4 {[%emt 0:00:00] Against Bh2+} Bxf4 {[%emt 0:00:28]} 46. Rxd7 {[%emt 0:00:00]} Rf8 {[%emt 0:00:40]} (46... Rg8 {keeps fighting.} 47. g3 Bg5) 47. Rd8 {[%emt 0:00:00]} g3 {[%emt 0:00:46]} (47... Bc7 $142) 48. Rxf8+ {[%emt 0:00:00]} Nxf8 {[%emt 0:00:02]} 49. fxg3 {[%emt 0:00:00][%cal Bf2g3,Bg3g4][%mdl 32]} Bc7 {[%emt 0:00:14]} 50. Rb3 {[%emt 0:00:00]} e5 {[%emt 0:00:25]} 51. a4 {[%emt 0:00:00]} Ne6 {[%emt 0:00:19]} 52. Rb7 {[%emt 0:00:00]} Ba5 {[%emt 0:01:52]} 53. Kf1 {[%emt 0:00:00]} Bc3 {[%emt 0:01:26]} 54. g4 {[%emt 0:00:00]} Nc5 {[%emt 0:00:55]} 55. Rc7 {[%emt 0:00:00]} Ne4 {[%emt 0:00:14]} 56. g5 {[%emt 0:00:00]} Ba5 {[%emt 0:00:12]} 57. Rc8+ {[%emt 0:00:00]} Kg7 {[%emt 0:01:37]} 58. g4 {[%emt 0:00:00]} Nxg5 {[%emt 0:00:47]} 59. Rc5 {[%emt 0:00:00]} Bd8 {[%emt 0:00:38]} 60. Rxe5 {[%emt 0:00:00] Intending Rd5 and mate.} Kf6 {[%emt 0:00:24]} 61. Rd5 {[%emt 0:00:00] White mates.} Nf7 {[%emt 0:00:18]} 62. a5 {[%emt 0:00:00]} Ke6 {[%emt 0:00:06] [#]} 63. a6 $1 {[%emt 0:00:00]} Kxd5 {[%emt 0:00:36]} (63... Bb6 64. Rb5) 64. a7 {[%emt 0:00:00]} Ke6 {[%emt 0:00:28]} 65. a8=Q {[%emt 0:00:00]} Bg5 {[%emt 0:00:04]} 66. Qe4+ {[%emt 0:00:00]} Kf6 {[%emt 0:00:05]} 67. Qg6+ {[%emt 0:00:00]} Ke7 {[%emt 0:00:03]} 68. Ke2 {[%emt 0:00:00]} Kf8 {[%emt 0:00:04]} 69. Qe6 {[%emt 0:00:00]} Bh6 {[%emt 0:00:17]} 70. Kd3 {[%emt 0:00:00]} Bf4 {[%emt 0:00:29]} 71. Qd5 {[%emt 0:00:59]} Kg7 {[%emt 0:00:16]} 72. Ke4 {[%emt 0:00:24]} Bc1 {[%emt 0:00:09]} 73. Kf5 {[%emt 0:01:45]} Nh6+ {[%emt 0:00:38]} 74. Ke6 {[%emt 0:00:15]} Nf7 {[%emt 0:00:04]} 75. Qd7 {[%emt 0:00:04] What a bad dream for Black.  Weighted Error Value: White=0.13 (very precise) /Black=0.45} 1-0